[Event "GrandPrix_29.05"]
[Site "Chess.com"]
[Date "2020.05.29"]
[Round "6"]
[White "Karateloru"]
[Black "TheJoker64"]
[Result "0-1"]
[WhiteElo "2240"]
[BlackElo "2457"]
[TimeControl "600+2"]
[EndTime "12:03:51 PDT"]
[Termination "TheJoker64 won by resignation"]

1. e4 {[%clk 0:10:01.9]} 1... c5 {[%clk 0:10:00.2]} 2. Nf3 {[%clk 0:10:01.9]}
2... Nc6 {[%clk 0:10:00.8]} 3. d4 {[%clk 0:09:58.9]} 3... cxd4 {[%clk
0:10:01.3]} 4. Nxd4 {[%clk 0:09:59.9]} 4... Qb6 {[%clk 0:10:02.3]} 5. Nb3 {[%clk
0:09:57.6]} 5... Nf6 {[%clk 0:10:01.4]} 6. Nc3 {[%clk 0:09:56.1]} 6... e6 {[%clk
0:10:02.1]} 7. Be3 {[%clk 0:09:55.7]} 7... Qc7 {[%clk 0:10:02.6]} 8. a3 {[%clk
0:09:46.2]} 8... a6 {[%clk 0:10:02.4]} 9. f4 {[%clk 0:09:39]} 9... d6 {[%clk
0:10:01.8]} 10. Bd3 {[%clk 0:09:34.5]} 10... b5 {[%clk 0:10:02.5]} 11. O-O
{[%clk 0:09:33.9]} 11... Be7 {[%clk 0:10:01.8]} 12. Qe2 {[%clk 0:09:24.8]} 12...
Bb7 {[%clk 0:09:56.3]} 13. Rae1 {[%clk 0:09:12.1]} 13... b4 {[%clk 0:09:20.4]}
14. axb4 {[%clk 0:09:11]} 14... Nxb4 {[%clk 0:09:21.1]} 15. Ra1 {[%clk
0:08:53.7]} 15... Rb8 {[%clk 0:08:58.3]} 16. Ra4 {[%clk 0:08:30.2]} 16... Bc6
{[%clk 0:07:45.5]} 17. Raa1 {[%clk 0:08:02.8]} 17... O-O {[%clk 0:07:20.1]} 18.
Nd4 {[%clk 0:07:07.9]} 18... Bd7 {[%clk 0:06:53.1]} 19. Kh1 {[%clk 0:06:56]}
19... Nxd3 {[%clk 0:06:32.4]} 20. cxd3 {[%clk 0:06:57.9]} 20... Qb7 {[%clk
0:06:29.1]} 21. Ra2 {[%clk 0:06:47.9]} 21... Rfc8 {[%clk 0:06:19.4]} 22. f5
{[%clk 0:05:00.2]} 22... e5 {[%clk 0:05:41]} 23. Nf3 {[%clk 0:04:59]} 23... h6
{[%clk 0:05:25.8]} 24. Bf2 {[%clk 0:04:16.9]} 24... Bc6 {[%clk 0:04:40.4]} 25.
Bh4 {[%clk 0:04:00.2]} 25... Ra8 {[%clk 0:04:39.4]} 26. Nd2 {[%clk 0:03:42.4]}
26... d5 {[%clk 0:04:13.2]} 27. exd5 {[%clk 0:03:09.4]} 27... Bxd5 {[%clk
0:02:50.2]} 28. Raa1 {[%clk 0:02:58.9]} 28... Qxb2 {[%clk 0:02:47.1]} 29. Bxf6
{[%clk 0:02:57.9]} 29... Rxc3 {[%clk 0:02:28.9]} 30. Bxe5 {[%clk 0:01:37.5]}
30... Bf6 {[%clk 0:02:07.7]} 31. Rab1 {[%clk 0:00:29.6]} 31... Qc2 {[%clk
0:02:00.9]} 32. Bxc3 {[%clk 0:00:13.8]} 32... Bxc3 {[%clk 0:01:52]} 33. Rfd1
{[%clk 0:00:14.9]} 33... Bb2 {[%clk 0:01:30.2]} 34. Qe3 {[%clk 0:00:15.4]} 34...
Ba2 {[%clk 0:01:21.8]} 35. h3 {[%clk 0:00:10.5]} 35... Bxb1 {[%clk 0:01:20.4]}
36. Rxb1 {[%clk 0:00:11.1]} 36... Bc3 {[%clk 0:01:15.8]} 37. Qe4 {[%clk
0:00:07.6]} 37... Rf8 {[%clk 0:01:13.4]} 38. f6 {[%clk 0:00:07.1]} 38... Bxd2
{[%clk 0:01:00.2]} 39. Rf1 {[%clk 0:00:06]} 39... g6 {[%clk 0:00:44.6]} 40. Rf2
{[%clk 0:00:03.7]} 40... Qc1+ {[%clk 0:00:41]} 41. Kh2 {[%clk 0:00:04.9]} 41...
a5 {[%clk 0:00:33.6]} 42. Qa4 {[%clk 0:00:05]} 42... Qc7+ {[%clk 0:00:30.8]} 43.
g3 {[%clk 0:00:05.7]} 43... Bb4 {[%clk 0:00:30.1]} 44. Re2 {[%clk 0:00:06.7]}
44... Qd6 {[%clk 0:00:28.2]} 45. Qa1 {[%clk 0:00:07.4]} 45... Qc6 {[%clk
0:00:19.9]} 46. Qd1 {[%clk 0:00:06.9]} 46... Qxf6 {[%clk 0:00:20.1]} 47. Re4
{[%clk 0:00:07.7]} 47... Qd6 {[%clk 0:00:20]} 48. Qe2 {[%clk 0:00:07.5]} 48...
a4 {[%clk 0:00:19.9]} 49. Kg2 {[%clk 0:00:08.2]} 49... a3 {[%clk 0:00:21.3]} 50.
Qa2 {[%clk 0:00:08.9]} 50... Bc5 {[%clk 0:00:20.3]} 51. Qc4 {[%clk 0:00:08.7]}
51... Rb8 {[%clk 0:00:20]} 52. Rf4 {[%clk 0:00:09.4]} 52... Qe7 {[%clk 0:00:16]}
53. h4 {[%clk 0:00:09.9]} 53... Rb2+ {[%clk 0:00:15.4]} 54. Kh3 {[%clk 0:00:11]}
54... a2 {[%clk 0:00:15.8]} 55. Rf1 {[%clk 0:00:10.7]} 55... Qd7+ {[%clk
0:00:10.3]} 56. g4 {[%clk 0:00:10.3]} 56... Bd6 {[%clk 0:00:11.4]} 57. Qd4
{[%clk 0:00:05.5]} 0-1

[Event "GrandPrix_29.05"]
[Site "Chess.com"]
[Date "2020.05.29"]
[Round "6"]
[White "elohunter1999"]
[Black "Firegrizzly"]
[Result "1/2-1/2"]
[WhiteElo "2207"]
[BlackElo "2328"]
[TimeControl "600+2"]
[EndTime "12:03:55 PDT"]
[Termination "Game drawn - insufficient material"]

1. e4 {[%clk 0:10:01.9]} 1... c5 {[%clk 0:09:58.8]} 2. Nf3 {[%clk 0:10:01.8]}
2... d6 {[%clk 0:09:59.8]} 3. d4 {[%clk 0:10:02.1]} 3... cxd4 {[%clk 0:10:00.4]}
4. Nxd4 {[%clk 0:10:04]} 4... Nf6 {[%clk 0:10:01.2]} 5. Nc3 {[%clk 0:10:05.5]}
5... Nc6 {[%clk 0:10:02.5]} 6. Bg5 {[%clk 0:10:05.7]} 6... e6 {[%clk 0:10:01.7]}
7. Qd2 {[%clk 0:10:06]} 7... a6 {[%clk 0:10:02.2]} 8. O-O-O {[%clk 0:10:06.6]}
8... Bd7 {[%clk 0:10:03.8]} 9. f4 {[%clk 0:10:05.8]} 9... b5 {[%clk 0:10:04.1]}
10. Bxf6 {[%clk 0:10:04.3]} 10... gxf6 {[%clk 0:10:04.3]} 11. Kb1 {[%clk
0:10:04.7]} 11... h5 {[%clk 0:10:03]} 12. f5 {[%clk 0:08:50.8]} 12... Qb6 {[%clk
0:10:03]} 13. Nxc6 {[%clk 0:08:46.3]} 13... Bxc6 {[%clk 0:10:03.5]} 14. fxe6
{[%clk 0:08:40.5]} 14... fxe6 {[%clk 0:10:03.8]} 15. Bd3 {[%clk 0:08:42.1]}
15... Qc5 {[%clk 0:09:57.4]} 16. Ne2 {[%clk 0:08:37.5]} 16... Qe5 {[%clk
0:09:36.1]} 17. Rhf1 {[%clk 0:07:55.7]} 17... Bh6 {[%clk 0:09:20]} 18. Qa5
{[%clk 0:06:15.5]} 18... O-O {[%clk 0:09:16.7]} 19. Qb6 {[%clk 0:04:34.6]} 19...
Rfc8 {[%clk 0:08:53.6]} 20. Nd4 {[%clk 0:04:28.7]} 20... Be8 {[%clk 0:08:26.5]}
21. c3 {[%clk 0:03:39.4]} 21... b4 {[%clk 0:08:00]} 22. Nf3 {[%clk 0:03:33.4]}
22... Qc5 {[%clk 0:07:52.7]} 23. Qxc5 {[%clk 0:03:32.4]} 23... dxc5 {[%clk
0:07:46.6]} 24. Bc4 {[%clk 0:03:32.5]} 24... Rc6 {[%clk 0:07:32.7]} 25. e5
{[%clk 0:03:23.1]} 25... f5 {[%clk 0:07:21.9]} 26. Rd6 {[%clk 0:03:16.2]} 26...
bxc3 {[%clk 0:07:09.2]} 27. Bxe6+ {[%clk 0:03:07.4]} 27... Kh8 {[%clk
0:07:05.6]} 28. bxc3 {[%clk 0:03:02.1]} 28... Rb8+ {[%clk 0:07:00.4]} 29. Kc2
{[%clk 0:02:55]} 29... Bf8 {[%clk 0:05:28.1]} 30. Rxc6 {[%clk 0:02:26.5]} 30...
Bxc6 {[%clk 0:05:30]} 31. Nd2 {[%clk 0:01:36]} 31... Be8 {[%clk 0:03:10.9]} 32.
Nc4 {[%clk 0:00:41]} 32... Ba4+ {[%clk 0:02:07.8]} 33. Kd3 {[%clk 0:00:40.4]}
33... Rd8+ {[%clk 0:02:07.2]} 34. Ke2 {[%clk 0:00:40.5]} 34... Bg7 {[%clk
0:01:35.8]} 35. Rxf5 {[%clk 0:00:38]} 35... Bd1+ {[%clk 0:01:33.8]} 36. Ke3
{[%clk 0:00:25.1]} 36... Bg4 {[%clk 0:01:29.4]} 37. Nd6 {[%clk 0:00:24.1]} 37...
Rb8 {[%clk 0:01:13]} 38. Ke4 {[%clk 0:00:17.4]} 38... Rb2 {[%clk 0:00:57.4]} 39.
h3 {[%clk 0:00:14.9]} 39... Bxf5+ {[%clk 0:00:55.2]} 40. Bxf5 {[%clk 0:00:13]}
40... Re2+ {[%clk 0:00:54.6]} 41. Kf3 {[%clk 0:00:13]} 41... Rxa2 {[%clk
0:00:51.3]} 42. e6 {[%clk 0:00:13.9]} 42... Bf6 {[%clk 0:00:45.9]} 43. Nc8
{[%clk 0:00:13.4]} 43... Ra3 {[%clk 0:00:43.8]} 44. e7 {[%clk 0:00:12.9]} 44...
Rxc3+ {[%clk 0:00:44.4]} 45. Ke2 {[%clk 0:00:13.7]} 45... Bxe7 {[%clk
0:00:42.4]} 46. Nxe7 {[%clk 0:00:14.8]} 46... a5 {[%clk 0:00:41.7]} 47. Nd5
{[%clk 0:00:14.9]} 47... Rg3 {[%clk 0:00:39.2]} 48. Kf2 {[%clk 0:00:15.3]} 48...
Rb3 {[%clk 0:00:31.9]} 49. Ke2 {[%clk 0:00:12.9]} 49... a4 {[%clk 0:00:32]} 50.
Bc2 {[%clk 0:00:12.3]} 50... Rb2 {[%clk 0:00:30.3]} 51. Kd1 {[%clk 0:00:13.4]}
51... a3 {[%clk 0:00:28.7]} 52. Kc1 {[%clk 0:00:14.3]} 52... h4 {[%clk
0:00:27.5]} 53. Ne3 {[%clk 0:00:13.4]} 53... Rb4 {[%clk 0:00:24.6]} 54. Bb1
{[%clk 0:00:13.3]} 54... Rb3 {[%clk 0:00:15.5]} 55. Nc2 {[%clk 0:00:11.9]} 55...
Rd3 {[%clk 0:00:10.4]} 56. Ba2 {[%clk 0:00:12.7]} 56... Rg3 {[%clk 0:00:10]} 57.
Bd5 {[%clk 0:00:13.1]} 57... Kg7 {[%clk 0:00:09.2]} 58. Bf3 {[%clk 0:00:13.5]}
58... a2 {[%clk 0:00:08.5]} 59. Kb2 {[%clk 0:00:14.3]} 59... Kf6 {[%clk
0:00:09.9]} 60. Kxa2 {[%clk 0:00:15.4]} 60... Ke5 {[%clk 0:00:11.5]} 61. Kb3
{[%clk 0:00:16.5]} 61... Kf4 {[%clk 0:00:12.5]} 62. Kc4 {[%clk 0:00:16.3]} 62...
Rxf3 {[%clk 0:00:13.5]} 63. gxf3 {[%clk 0:00:16.9]} 63... Kxf3 {[%clk
0:00:15.3]} 64. Kxc5 {[%clk 0:00:17.7]} 64... Kg3 {[%clk 0:00:16.7]} 65. Ne3
{[%clk 0:00:18.7]} 65... Kxh3 {[%clk 0:00:18.3]} 66. Nf5 {[%clk 0:00:20]} 66...
Kg4 {[%clk 0:00:19.9]} 67. Nxh4 {[%clk 0:00:21.9]} 1/2-1/2

[Event "GrandPrix_29.05"]
[Site "Chess.com"]
[Date "2020.05.29"]
[Round "6"]
[White "Logman74"]
[Black "econpower"]
[Result "0-1"]
[WhiteElo "2142"]
[BlackElo "2199"]
[TimeControl "600+2"]
[EndTime "12:04:00 PDT"]
[Termination "econpower won on time"]

1. e4 {[%clk 0:10:01.9]} 1... d6 {[%clk 0:09:59.8]} 2. d4 {[%clk 0:10:02.1]}
2... Nf6 {[%clk 0:10:00.9]} 3. Nc3 {[%clk 0:10:02.5]} 3... e5 {[%clk 0:10:02.2]}
4. Nf3 {[%clk 0:10:02.3]} 4... Nbd7 {[%clk 0:10:02.8]} 5. Bc4 {[%clk 0:10:02.6]}
5... Be7 {[%clk 0:10:04]} 6. O-O {[%clk 0:10:01.9]} 6... O-O {[%clk 0:10:05.7]}
7. Re1 {[%clk 0:10:02.4]} 7... c6 {[%clk 0:10:06.2]} 8. a4 {[%clk 0:10:02.2]}
8... exd4 {[%clk 0:10:07.5]} 9. Nxd4 {[%clk 0:10:01.9]} 9... Ne5 {[%clk
0:10:08.3]} 10. Ba2 {[%clk 0:10:00.4]} 10... Qa5 {[%clk 0:10:09.1]} 11. h3
{[%clk 0:09:58.8]} 11... Qb4 {[%clk 0:09:36.4]} 12. Rb1 {[%clk 0:09:52.2]} 12...
Re8 {[%clk 0:09:10.8]} 13. Bg5 {[%clk 0:09:43.2]} 13... h6 {[%clk 0:08:42.3]}
14. Bh4 {[%clk 0:09:40.5]} 14... Bd7 {[%clk 0:07:42.1]} 15. Bg3 {[%clk 0:09:23]}
15... Bf8 {[%clk 0:07:12]} 16. f4 {[%clk 0:08:40.2]} 16... Nc4 {[%clk
0:07:11.1]} 17. e5 {[%clk 0:08:34.2]} 17... Nxb2 {[%clk 0:06:32.3]} 18. Qd2
{[%clk 0:08:08.3]} 18... Nd5 {[%clk 0:05:57]} 19. Nde2 {[%clk 0:05:24.4]} 19...
dxe5 {[%clk 0:05:07.6]} 20. fxe5 {[%clk 0:05:00]} 20... Bc5+ {[%clk 0:04:56.9]}
21. Bf2 {[%clk 0:04:08.5]} 21... Rxe5 {[%clk 0:03:59.4]} 22. Bxc5 {[%clk
0:03:02.6]} 22... Qxc5+ {[%clk 0:03:58.4]} 23. Kh1 {[%clk 0:03:01.5]} 23... Nc4
{[%clk 0:03:06.8]} 24. Qd3 {[%clk 0:02:51.1]} 24... Nd6 {[%clk 0:02:27.2]} 25.
Nxd5 {[%clk 0:02:17.4]} 25... cxd5 {[%clk 0:02:27.9]} 26. Rf1 {[%clk 0:02:14.4]}
26... Bf5 {[%clk 0:02:06.3]} 27. Qd4 {[%clk 0:02:06.3]} 27... Qxd4 {[%clk
0:02:07.1]} 28. Nxd4 {[%clk 0:02:06.7]} 28... Be4 {[%clk 0:02:09]} 29. Kh2
{[%clk 0:01:56]} 29... Rc8 {[%clk 0:02:09.6]} 30. Rf2 {[%clk 0:01:52.9]} 30...
Re7 {[%clk 0:01:49.3]} 31. Bb3 {[%clk 0:01:45.2]} 31... Kh7 {[%clk 0:01:27]} 32.
Re1 {[%clk 0:01:45.2]} 32... Rce8 {[%clk 0:01:25.9]} 33. Re3 {[%clk 0:01:45.7]}
33... f5 {[%clk 0:01:26.8]} 34. Rc3 {[%clk 0:01:33.7]} 34... g5 {[%clk
0:01:24.9]} 35. Rc5 {[%clk 0:01:33.5]} 35... Re5 {[%clk 0:01:26.2]} 36. a5
{[%clk 0:01:31.1]} 36... a6 {[%clk 0:01:23.8]} 37. Rc7+ {[%clk 0:01:30.8]} 37...
R8e7 {[%clk 0:01:24.2]} 38. Rc5 {[%clk 0:01:31.7]} 38... Kg6 {[%clk 0:01:24.7]}
39. Re2 {[%clk 0:01:31.5]} 39... h5 {[%clk 0:01:22.5]} 40. c3 {[%clk 0:01:27.9]}
40... Kf6 {[%clk 0:01:20.7]} 41. Re1 {[%clk 0:01:19.3]} 41... f4 {[%clk
0:01:17.9]} 42. Re2 {[%clk 0:01:18.4]} 42... g4 {[%clk 0:01:16.4]} 43. h4 {[%clk
0:01:04.6]} 43... g3+ {[%clk 0:00:49.2]} 44. Kg1 {[%clk 0:01:05]} 44... Bd3
{[%clk 0:00:50.1]} 45. Rxe5 {[%clk 0:01:04.5]} 45... Rxe5 {[%clk 0:00:50.6]} 46.
Nf3 {[%clk 0:01:05.3]} 46... Rf5 {[%clk 0:00:46.5]} 47. Rxd5 {[%clk 0:01:02]}
47... Rxd5 {[%clk 0:00:45.2]} 48. Bxd5 {[%clk 0:01:02.9]} 48... Bc4 {[%clk
0:00:45.8]} 49. Bxc4 {[%clk 0:00:56.4]} 49... Nxc4 {[%clk 0:00:46.7]} 50. Kf1
{[%clk 0:00:57.9]} 50... Nxa5 {[%clk 0:00:41.8]} 51. Ke2 {[%clk 0:00:58]} 51...
Nc4 {[%clk 0:00:41.8]} 52. Nd4 {[%clk 0:00:59.1]} 52... Ne5 {[%clk 0:00:42.4]}
53. Nb3 {[%clk 0:00:57.3]} 53... b6 {[%clk 0:00:43]} 54. Nd4 {[%clk 0:00:56.5]}
54... a5 {[%clk 0:00:43.2]} 55. Nb5 {[%clk 0:00:56.5]} 55... Kf5 {[%clk
0:00:43.9]} 56. Nd6+ {[%clk 0:00:55]} 56... Kg4 {[%clk 0:00:45]} 57. Ne4 {[%clk
0:00:53]} 57... Kxh4 {[%clk 0:00:42.2]} 58. Nf6 {[%clk 0:00:51.4]} 58... a4
{[%clk 0:00:42.7]} 59. Nd5 {[%clk 0:00:50]} 59... a3 {[%clk 0:00:43.8]} 60. Nb4
{[%clk 0:00:51.3]} 60... Kg4 {[%clk 0:00:44.6]} 61. Na2 {[%clk 0:00:50.7]} 61...
h4 {[%clk 0:00:45.3]} 62. Nc1 {[%clk 0:00:48.9]} 62... h3 {[%clk 0:00:46.3]} 63.
gxh3+ {[%clk 0:00:49.4]} 63... Kxh3 {[%clk 0:00:47.5]} 64. Kf1 {[%clk
0:00:50.8]} 64... f3 {[%clk 0:00:48.6]} 65. Kg1 {[%clk 0:00:51.4]} 65... f2+
{[%clk 0:00:43.8]} 66. Kf1 {[%clk 0:00:31.1]} 66... Nc4 {[%clk 0:00:43.7]} 67.
Ke2 {[%clk 0:00:25.6]} 67... Kg2 {[%clk 0:00:42.4]} 0-1

[Event "GrandPrix_29.05"]
[Site "Chess.com"]
[Date "2020.05.29"]
[Round "6"]
[White "Alexander_Moskalenko"]
[Black "nikosgal"]
[Result "0-1"]
[WhiteElo "2331"]
[BlackElo "2553"]
[TimeControl "600+2"]
[EndTime "12:04:09 PDT"]
[Termination "nikosgal won on time"]

1. d4 {[%clk 0:10:01.9]} 1... Nf6 {[%clk 0:10:00.5]} 2. Bf4 {[%clk 0:09:52.9]}
2... e6 {[%clk 0:10:01.2]} 3. e3 {[%clk 0:09:50.9]} 3... c5 {[%clk 0:10:02.1]}
4. Nd2 {[%clk 0:09:51.2]} 4... Be7 {[%clk 0:10:02.5]} 5. Ngf3 {[%clk 0:09:51.8]}
5... O-O {[%clk 0:10:02.8]} 6. c3 {[%clk 0:09:50.9]} 6... cxd4 {[%clk
0:10:01.9]} 7. exd4 {[%clk 0:09:51.3]} 7... b6 {[%clk 0:10:03.1]} 8. Bd3 {[%clk
0:09:51.1]} 8... Bb7 {[%clk 0:10:04.3]} 9. Qe2 {[%clk 0:09:52.8]} 9... d6 {[%clk
0:10:05.6]} 10. h4 {[%clk 0:09:46]} 10... Nbd7 {[%clk 0:10:06]} 11. h5 {[%clk
0:09:47.3]} 11... Re8 {[%clk 0:10:01.9]} 12. O-O-O {[%clk 0:09:33.9]} 12... Bf8
{[%clk 0:09:58.2]} 13. Bc2 {[%clk 0:09:11.6]} 13... Qc7 {[%clk 0:09:46.5]} 14.
g4 {[%clk 0:08:57.6]} 14... e5 {[%clk 0:09:38.8]} 15. Be3 {[%clk 0:08:46.5]}
15... exd4 {[%clk 0:09:17.8]} 16. Nxd4 {[%clk 0:08:46.6]} 16... Bxh1 {[%clk
0:08:44.6]} 17. Rxh1 {[%clk 0:08:48.5]} 17... Ne5 {[%clk 0:08:45.4]} 18. f3
{[%clk 0:08:32.7]} 18... Nd5 {[%clk 0:08:39.1]} 19. Ne4 {[%clk 0:08:33.1]} 19...
Nxe3 {[%clk 0:05:44.9]} 20. Qxe3 {[%clk 0:08:35]} 20... d5 {[%clk 0:05:45.7]}
21. Ng5 {[%clk 0:07:53.4]} 21... h6 {[%clk 0:05:45.3]} 22. Nh7 {[%clk
0:07:54.4]} 22... Nxg4 {[%clk 0:04:57]} 23. Qd2 {[%clk 0:07:54.9]} 23... Ne3
{[%clk 0:04:47]} 24. Rg1 {[%clk 0:07:55.6]} 24... Kh8 {[%clk 0:04:34.2]} 25.
Nxf8 {[%clk 0:06:51.3]} 25... Nxc2 {[%clk 0:04:32.7]} 26. Kxc2 {[%clk
0:04:07.9]} 26... Rxf8 {[%clk 0:04:17.2]} 27. Nf5 {[%clk 0:04:08.7]} 27... Qe5
{[%clk 0:04:01.1]} 28. Nxh6 {[%clk 0:04:06.2]} 28... Rae8 {[%clk 0:03:49.6]} 29.
Ng4 {[%clk 0:03:50]} 29... Qe2 {[%clk 0:03:39.8]} 30. h6 {[%clk 0:03:49.3]}
30... g6 {[%clk 0:03:14.1]} 31. f4 {[%clk 0:03:12.2]} 31... Qxd2+ {[%clk
0:03:07.6]} 32. Kxd2 {[%clk 0:03:14.1]} 32... Re4 {[%clk 0:03:08.5]} 33. f5
{[%clk 0:03:15.6]} 33... gxf5 {[%clk 0:02:56.5]} 34. Nf6 {[%clk 0:03:07.2]}
34... Re6 {[%clk 0:02:55]} 35. Nxd5 {[%clk 0:03:07.5]} 35... Rd8 {[%clk
0:02:49.4]} 36. c4 {[%clk 0:03:08.3]} 36... Rxh6 {[%clk 0:02:50.4]} 37. Kc3
{[%clk 0:03:06.2]} 37... Rh3+ {[%clk 0:02:36.4]} 38. Kd4 {[%clk 0:03:04.1]}
38... Rg8 {[%clk 0:02:23]} 39. Rf1 {[%clk 0:02:58.4]} 39... Rg4+ {[%clk
0:02:21.2]} 40. Nf4 {[%clk 0:02:56.1]} 40... f6 {[%clk 0:02:00.9]} 41. b4 {[%clk
0:02:47.5]} 41... Kg7 {[%clk 0:01:36.8]} 42. Kd5 {[%clk 0:02:43.4]} 42... Kf7
{[%clk 0:01:35]} 43. c5 {[%clk 0:02:40.8]} 43... Rc3 {[%clk 0:00:59.3]} 44. a4
{[%clk 0:02:19.1]} 44... bxc5 {[%clk 0:00:53.4]} 45. bxc5 {[%clk 0:02:21]} 45...
Rg8 {[%clk 0:00:51.5]} 46. Ne6 {[%clk 0:02:16.1]} 46... Re8 {[%clk 0:00:43.8]}
47. Nc7 {[%clk 0:01:35.5]} 47... Re5+ {[%clk 0:00:40.4]} 48. Kd6 {[%clk
0:01:23.7]} 48... Rexc5 {[%clk 0:00:31.8]} 49. Nd5 {[%clk 0:01:23.2]} 49... Rc6+
{[%clk 0:00:18.1]} 50. Kd7 {[%clk 0:01:24.1]} 50... Rc1 {[%clk 0:00:18.4]} 51.
Rxf5 {[%clk 0:01:23.5]} 51... Re6 {[%clk 0:00:18.5]} 52. a5 {[%clk 0:01:11.6]}
52... Rd1 {[%clk 0:00:19.4]} 53. Kc7 {[%clk 0:01:10.6]} 53... Re5 {[%clk
0:00:20.5]} 54. Rxf6+ {[%clk 0:01:11.5]} 54... Kg7 {[%clk 0:00:21.9]} 55. Nc3
{[%clk 0:01:09.4]} 55... Kxf6 {[%clk 0:00:21.6]} 56. Nxd1 {[%clk 0:01:09.6]}
56... Rxa5 {[%clk 0:00:23]} 57. Kc6 {[%clk 0:01:05.5]} 57... Ke5 {[%clk
0:00:21.5]} 58. Ne3 {[%clk 0:01:06.1]} 58... Kd4 {[%clk 0:00:21.9]} 59. Nc2+
{[%clk 0:01:06.4]} 59... Kc3 {[%clk 0:00:22]} 60. Ne3 {[%clk 0:01:07.7]} 60...
Ra1 {[%clk 0:00:22.8]} 61. Kc5 {[%clk 0:01:08.4]} 61... a5 {[%clk 0:00:22.9]}
62. Nd5+ {[%clk 0:01:08.9]} 62... Kb3 {[%clk 0:00:24.1]} 63. Ne3 {[%clk
0:00:50.3]} 63... a4 {[%clk 0:00:24.6]} 64. Nc2 {[%clk 0:00:52.2]} 64... Kxc2
{[%clk 0:00:25.3]} 0-1

[Event "GrandPrix_29.05"]
[Site "Chess.com"]
[Date "2020.05.29"]
[Round "6"]
[White "switlave"]
[Black "chessdjw"]
[Result "1/2-1/2"]
[WhiteElo "2035"]
[BlackElo "2110"]
[TimeControl "600+2"]
[EndTime "12:04:10 PDT"]
[Termination "Game drawn by agreement"]

1. d4 {[%clk 0:10:01.9]} 1... Nf6 {[%clk 0:10:00.4]} 2. Bf4 {[%clk 0:10:01.7]}
2... d5 {[%clk 0:09:59.6]} 3. e3 {[%clk 0:10:02.9]} 3... c5 {[%clk 0:09:59.9]}
4. c3 {[%clk 0:10:03.7]} 4... Nc6 {[%clk 0:10:00]} 5. Nd2 {[%clk 0:10:04.4]}
5... Bf5 {[%clk 0:09:54.7]} 6. Qb3 {[%clk 0:10:05]} 6... Qc8 {[%clk 0:09:50.7]}
7. dxc5 {[%clk 0:10:06.1]} 7... e6 {[%clk 0:09:33.4]} 8. Qa3 {[%clk 0:10:06.2]}
8... e5 {[%clk 0:09:22.9]} 9. Bg3 {[%clk 0:09:41.3]} 9... a5 {[%clk 0:09:20.7]}
10. Ngf3 {[%clk 0:09:18.6]} 10... Nd7 {[%clk 0:09:21.1]} 11. Bb5 {[%clk
0:09:13.7]} 11... f6 {[%clk 0:09:05.9]} 12. Nh4 {[%clk 0:04:58.7]} 12... Bc2
{[%clk 0:08:30.7]} 13. b4 {[%clk 0:04:47.3]} 13... axb4 {[%clk 0:08:26.5]} 14.
Qb2 {[%clk 0:04:48.4]} 14... bxc3 {[%clk 0:08:24.4]} 15. Qxc2 {[%clk 0:04:34.1]}
15... cxd2+ {[%clk 0:08:23.9]} 16. Qxd2 {[%clk 0:04:35.5]} 16... Bxc5 {[%clk
0:07:48.4]} 17. Qxd5 {[%clk 0:04:36.1]} 17... Bb4+ {[%clk 0:07:33.2]} 18. Ke2
{[%clk 0:04:27.2]} 18... Nb6 {[%clk 0:07:29.3]} 19. Qb3 {[%clk 0:04:22.7]} 19...
Ba3 {[%clk 0:04:33.3]} 20. Rhd1 {[%clk 0:03:35.4]} 20... Ke7 {[%clk 0:03:51.8]}
21. Bxc6 {[%clk 0:02:09.9]} 21... Qxc6 {[%clk 0:03:51]} 22. Nf5+ {[%clk
0:02:04.2]} 22... Kf8 {[%clk 0:03:52.4]} 23. Rab1 {[%clk 0:02:05.2]} 23... Bc5
{[%clk 0:02:23.6]} 24. Kf1 {[%clk 0:01:49.9]} 24... g6 {[%clk 0:02:09]} 25. Nd4
{[%clk 0:01:17.7]} 25... exd4 {[%clk 0:01:52.4]} 26. exd4 {[%clk 0:01:18.2]}
26... Na4 {[%clk 0:01:01.6]} 27. dxc5 {[%clk 0:01:04]} 27... Nxc5 {[%clk
0:01:02.6]} 28. Qc4 {[%clk 0:00:58.2]} 28... Ne4 {[%clk 0:00:40.5]} 29. Qb4+
{[%clk 0:00:51.3]} 29... Kg7 {[%clk 0:00:32.2]} 30. Qxb7+ {[%clk 0:00:44.9]}
30... Qxb7 {[%clk 0:00:34.1]} 31. Rxb7+ {[%clk 0:00:46.1]} 31... Kh6 {[%clk
0:00:35.2]} 32. Rb2 {[%clk 0:00:43.7]} 32... Nxg3+ {[%clk 0:00:33.1]} 33. hxg3
{[%clk 0:00:44.2]} 33... Ra7 {[%clk 0:00:32.6]} 34. Rdd2 {[%clk 0:00:37.1]}
34... Rha8 {[%clk 0:00:33.5]} 35. Ke1 {[%clk 0:00:38.6]} 35... Ra3 {[%clk
0:00:33.2]} 36. Kd1 {[%clk 0:00:39.7]} 36... g5 {[%clk 0:00:33]} 37. Kc1 {[%clk
0:00:40.6]} 37... Kg6 {[%clk 0:00:33.8]} 38. Kb1 {[%clk 0:00:41.9]} 38... R3a6
{[%clk 0:00:30.1]} 39. Rb3 {[%clk 0:00:41]} 39... h5 {[%clk 0:00:27.3]} 40. Kb2
{[%clk 0:00:41.8]} 40... Rxa2+ {[%clk 0:00:26.8]} 41. Kc1 {[%clk 0:00:28.1]}
41... Rc8+ {[%clk 0:00:09.2]} 42. Kd1 {[%clk 0:00:27.6]} 42... Ra1+ {[%clk
0:00:10.6]} 43. Ke2 {[%clk 0:00:28.5]} 43... Rcc1 {[%clk 0:00:10.3]} 44. Rbd3
{[%clk 0:00:12.2]} 44... Re1+ {[%clk 0:00:10.4]} 45. Kf3 {[%clk 0:00:13.6]}
45... Ra5 {[%clk 0:00:04.9]} 46. g4 {[%clk 0:00:11.7]} 46... hxg4+ {[%clk
0:00:04.1]} 47. Kxg4 {[%clk 0:00:12.4]} 47... Ra4+ {[%clk 0:00:04.5]} 48. Rd4
{[%clk 0:00:11.6]} 48... Re4+ {[%clk 0:00:06.4]} 49. Rxe4 {[%clk 0:00:12.4]}
49... Rxe4+ {[%clk 0:00:07.8]} 50. Kf3 {[%clk 0:00:13.9]} 50... Re6 {[%clk
0:00:09.7]} 51. Kg3 {[%clk 0:00:14.7]} 51... Re5 {[%clk 0:00:10.5]} 52. Kf3
{[%clk 0:00:15.1]} 52... Rf5+ {[%clk 0:00:11.9]} 53. Kg3 {[%clk 0:00:15.9]}
53... Rf4 {[%clk 0:00:13.3]} 54. Rd8 {[%clk 0:00:13.8]} 54... Re4 {[%clk
0:00:13.4]} 55. Ra8 {[%clk 0:00:11.9]} 55... Rb4 {[%clk 0:00:14.1]} 56. Rc8
{[%clk 0:00:12.3]} 56... Rb3+ {[%clk 0:00:15.4]} 57. f3 {[%clk 0:00:12.9]} 57...
Kf5 {[%clk 0:00:15.4]} 58. Rc5+ {[%clk 0:00:12.9]} 58... Kg6 {[%clk 0:00:16.8]}
59. Rc6 {[%clk 0:00:13.9]} 59... Rb2 {[%clk 0:00:18]} 60. Ra6 {[%clk 0:00:14.8]}
60... Rc2 {[%clk 0:00:19.1]} 61. Rb6 {[%clk 0:00:15.4]} 61... Ra2 {[%clk
0:00:20.7]} 62. Rc6 {[%clk 0:00:16.3]} 62... Kf5 {[%clk 0:00:21.9]} 63. Rc5+
{[%clk 0:00:15.9]} 63... Ke6 {[%clk 0:00:23.2]} 64. Rc6+ {[%clk 0:00:17.2]}
64... Ke5 {[%clk 0:00:24.5]} 65. Rc5+ {[%clk 0:00:17]} 65... Kd6 {[%clk
0:00:25.5]} 66. Rb5 {[%clk 0:00:18]} 66... Ke6 {[%clk 0:00:26.9]} 67. Rb6+
{[%clk 0:00:18.8]} 67... Kf7 {[%clk 0:00:28.2]} 68. Rb5 {[%clk 0:00:19.3]} 68...
Kg6 {[%clk 0:00:29.4]} 69. Rb6 {[%clk 0:00:19.9]} 69... Rc2 {[%clk 0:00:30.5]}
70. Ra6 {[%clk 0:00:19.7]} 70... Rb2 {[%clk 0:00:30.9]} 71. Rc6 {[%clk
0:00:20.4]} 71... Ra2 {[%clk 0:00:29.6]} 1/2-1/2